fUST/lending_fUST_20250526
["ID","MTS","AMOUNT","RATE_DAILY","PERIOD"]
[362358431,1748214652738,-715.58,0.00022465,2]
[362358432,1748214652748,-430.0,0.00022465,2]
[362358433,1748214652757,-563.77,0.00022465,2]
[362358434,1748214652767,-430.0,0.00022465,2]
[362358435,1748214652776,-431.71,0.00022465,2]
[362358436,1748214652785,-430.0,0.00022465,2]
[362358437,1748214652794,-174.62516118,0.00022531,2]
[362358438,1748214652803,-293.10280736,0.00022624,7]
[362358439,1748214652812,-1269.51022933,0.00022646,2]
[362358440,1748214652823,-230.48977067,0.00022646,2]
[362358441,1748214652832,-23.25212666,0.00022646,2]
[362358442,1748214652866,-894.64583333,0.00019167,3]
[362358443,1748214653002,-404.0,0.00020891,2]
[362358444,1748214653012,-1476.74787334,0.00022646,2]
[362358445,1748214653022,-2000.0,0.000227,2]
[362358446,1748214653032,-2000.0,0.000227,2]
[362358447,1748214653042,-430.0,0.00022739,2]
[362358448,1748214653051,-715.58,0.00022739,2]
[362358449,1748214653062,-430.0,0.00022739,2]
[362358450,1748214653072,-563.77,0.00022739,2]
[362358451,1748214653082,-430.0,0.00022739,2]
[362358452,1748214653091,-431.71,0.00022739,2]
[362358453,1748214653100,-430.0,0.00022739,2]
[362358454,1748214653110,-293.10280736,0.00022831,8]
[362358455,1748214653120,-1500.0,0.00022833,2]
[362358456,1748214653130,-500.0,0.00022858,2]
[362358457,1748214653140,-582.01,0.00022895,2]
[362358458,1748214653150,-500.0,0.00022982,2]
[362358459,1748214653160,-500.0,0.00022982,2]
[362358460,1748214653169,-1500.0,0.00022982,2]
[362358461,1748214653179,-1500.0,0.00022982,2]
[362358462,1748214653188,-1800.0,0.00022982,2]
[362358463,1748214653198,-19175.13011187,0.00023,2]
[362358464,1748214653207,-423.00916439,0.00023,3]
[362358465,1748214653218,-160.0,0.00023,3]
[362358466,1748214653229,-229.13142565,0.00023,3]
[362358467,1748214653238,-160.0,0.00023,3]
[362358468,1748214653248,-151.0,0.00023013,7]
[362358469,1748214653257,-500.0,0.00023013,2]
[362358470,1748214653267,-430.0,0.00023013,2]
[362358471,1748214653277,-715.58,0.00023013,2]
[362358472,1748214653287,-430.0,0.00023013,2]
[362358473,1748214653298,-563.77,0.00023013,2]
[362358474,1748214653311,-430.0,0.00023013,2]
[362358475,1748214653322,-431.71,0.00023013,2]
[362358476,1748214653332,-430.0,0.00023013,2]
[362358477,1748214653342,-171.0,0.00023014,7]
[362358478,1748214653351,-184.0,0.00023014,7]
[362358479,1748214653361,-293.10280736,0.00023038,8]
[362358480,1748214653371,-823.29,0.00023053,2]
[362358481,1748214653381,-2000.0,0.000231,2]
[362358482,1748214653392,-823.29,0.00023153,6]
[362358483,1748214653403,-2000.0,0.00023194,2]
[362358484,1748214653413,-500.0,0.00023194,2]
[362358485,1748214653423,-293.10280736,0.00023245,8]
[362358486,1748214653433,-823.29,0.00023253,4]
[362358487,1748214653443,-430.0,0.00023287,2]
[362358488,1748214653452,-715.58,0.00023287,2]
[362358489,1748214653463,-430.0,0.00023287,2]
[362358490,1748214653473,-563.77,0.00023287,2]
[362358491,1748214653483,-579.84,0.00023287,2]
[362358492,1748214653493,-431.71,0.00023287,2]
[362358493,1748214653504,-430.0,0.00023287,2]
[362358494,1748214653513,-823.29,0.00023353,7]
[362358495,1748214653524,-259.78007751,0.00023381,2]
[362358496,1748214653534,-494.137437,0.00023422,2]
[362358497,1748214653544,-293.10280736,0.00023452,9]
[362358498,1748214653554,-823.29,0.00023453,7]
[362358499,1748214653564,-964.80055088,0.0002353,2]
[362358500,1748214653574,-2000.0,0.0002353,2]
[362358501,1748214653583,-2400.0,0.0002353,2]
[362358502,1748214653592,-823.29,0.00023553,2]
[362358503,1748214653602,-500.0,0.00023561,2]
[362358504,1748214653612,-430.0,0.00023561,2]
[362358505,1748214653621,-715.58,0.00023561,2]
[362358506,1748214653631,-430.0,0.00023561,2]
[362358507,1748214653641,-563.77,0.00023561,2]
[362358508,1748214653651,-431.71,0.00023561,2]
[362358509,1748214653660,-485.27228947,0.00023561,2]
[362358510,1748214653670,-215.0738,0.00023563,2]
[362358511,1748214653679,-823.29,0.00023653,5]
[362358512,1748214653689,-293.10280736,0.00023659,9]
[362358513,1748214653698,-9190.6604785,0.00023673,2]
[362358514,1748214653708,-5000.0,0.00023673,2]
[362358515,1748214653718,-5000.0,0.00023673,2]
[362358516,1748214653728,-5000.0,0.00023673,2]
[362358517,1748214653737,-5000.0,0.00023673,2]
[362358518,1748214653746,-5000.0,0.00023673,2]
[362358519,1748214653755,-2000.0,0.000237,2]
[362358520,1748214653765,-2000.0,0.000237,2]
[362358521,1748214653775,-1050.53,0.00023715,15]
[362358522,1748214653785,-174.62516118,0.00023716,2]
[362358523,1748214653795,-2500.0,0.00023742,2]
[362358524,1748214653804,-823.29,0.00023753,2]
[362358525,1748214653814,-430.0,0.00023835,2]
[362358526,1748214653824,-715.58,0.00023835,2]
[362358527,1748214653833,-409.56,0.00023835,2]
[362358528,1748214653844,-563.77,0.00023835,2]
[362358529,1748214653854,-431.71,0.00023835,2]
[362358530,1748214653864,-823.29,0.00023853,4]
[362358531,1748214653873,-293.10280736,0.00023866,10]
[362358532,1748214653883,-404.0,0.00023891,2]
[362358533,1748214653894,-422860.77909267,0.000239,2]
[362358534,1748214653907,-316.03822774,0.000239,2]
[362358535,1748214686872,-160.9785371,0.00016434,2]
[362358536,1748214687939,-5.6114629,0.00016434,2]
[362358537,1748214687967,-146.3885371,0.00017698,2]
[362358545,1748215102342,252.0,0.00013699,2]
[362358546,1748215166485,-1962.0,0.00013699,2]
[362358547,1748215380832,234.0,0.00013699,2]
[362358548,1748215439046,-2009.20257847,0.00013699,2]
[362358549,1748215519107,165.0,0.00013599,2]
[362358609,1748215832626,-279.215804,0.00013699,2]
[362358610,1748215832637,-167.4,0.00014657,2]
[362358611,1748215832647,-46.90778149,0.00015878,2]
[362358612,1748215832885,-204.19221851,0.00015878,2]
[362358613,1748215832896,-334.8,0.000171,2]
[362358614,1748215832908,-319.3934914,0.00017711,2]
[362358615,1748215832917,-5347.4673651,0.00017901,2]
[362358616,1748215832929,-252.3163941,0.00017957,2]
[362358617,1748215832940,-418.5,0.00018321,2]
[362358618,1748215832951,-232.42939469,0.000189,2]
[362358619,1748215832963,-852.92295624,0.000189,2]
[362358620,1748215832972,-500.0,0.00018975,2]
[362358621,1748215832983,-167.48966092,0.00018975,2]
[362358622,1748215832992,-500.0,0.00018975,2]
[362358623,1748215833002,-232.30224052,0.00018975,2]
[362358624,1748215833012,-500.0,0.00018975,2]
[362358625,1748215833023,-500.0,0.00018975,2]
[362358626,1748215833033,-500.0,0.00018975,2]
[362358627,1748215833043,-500.0,0.00018975,2]
[362358628,1748215833054,-500.0,0.00018975,2]
[362358629,1748215833064,-452.69717445,0.00018975,2]
[362358630,1748215833074,-279.99363241,0.00018975,2]
[362358631,1748215833084,-500.0,0.00018975,2]
[362358632,1748215833094,-500.0,0.00018975,2]
[362358633,1748215833104,-300.0,0.00018975,2]
[362358634,1748215833114,-44185.5577917,0.00018976,2]
[362358635,1748215833123,-202.02518792,0.00018978,2]
[362358636,1748215833133,-3927.96278661,0.00019078,2]
[362358637,1748215833143,-852.92295614,0.00019107,2]
[362358638,1748215833152,-3927.96278659,0.00019147,2]
[362358639,1748215833162,-597.42825648,0.00019177,2]
[362358640,1748215833171,-500.0,0.00019177,2]
[362358641,1748215833181,-500.0,0.00019177,2]
[362358642,1748215833191,-500.0,0.00019177,2]
[362358643,1748215833200,-406.39164214,0.00019177,2]
[362358644,1748215833210,-430.0,0.00019178,2]
[362358645,1748215833220,-400.0,0.00019178,2]
[362358646,1748215833230,-430.0,0.00019178,2]
[362358647,1748215833239,-437.76379918,0.00019178,2]
[362358648,1748215833249,-430.0,0.00019178,2]
[362358649,1748215833259,-430.0,0.00019178,2]
[362358650,1748215833269,-430.0,0.00019178,2]
[362358651,1748215833279,-431.84873712,0.00019178,2]
[362358652,1748215833289,-430.0,0.00019178,2]
[362358653,1748215833299,-430.0,0.00019178,2]
[362358654,1748215833308,-436.43800528,0.00019178,2]
[362358655,1748215833318,-430.0,0.00019178,2]
[362358656,1748215833328,-576.62313737,0.00019178,2]
[362358657,1748215833338,-435.31978953,0.00019178,2]
[362358658,1748215833352,-394.21888373,0.00019178,2]
[362358659,1748215833362,-440.42675374,0.00019178,2]
[362358660,1748215833372,-397.07452826,0.00019178,2]
[362358661,1748215833382,-392.99143153,0.00019178,2]
[362358662,1748215833392,-430.0,0.00019178,2]
[362358663,1748215833403,-430.0,0.00019178,2]
[362358664,1748215833413,-430.0,0.00019178,2]
[362358665,1748215833423,-430.0,0.00019178,2]
[362358666,1748215833434,-430.0,0.00019178,2]
[362358667,1748215833444,-430.0,0.00019178,2]
[362358668,1748215833455,-430.0,0.00019178,2]
[362358669,1748215833465,-430.0,0.00019178,2]
[362358670,1748215833475,-430.0,0.00019178,2]
[362358671,1748215833485,-430.0,0.00019178,2]
[362358672,1748215833495,-430.0,0.00019178,2]
[362358673,1748215833505,-430.0,0.00019178,2]
[362358674,1748215833515,-400.61981624,0.00019178,2]
[362358675,1748215833525,-430.0,0.00019178,2]
[362358676,1748215833535,-400.0,0.00019178,2]
[362358677,1748215833545,-430.0,0.00019178,2]
[362358678,1748215833557,-430.0,0.00019178,2]
[362358679,1748215833567,-400.0,0.00019178,2]
[362358680,1748215833578,-430.0,0.00019178,2]
[362358681,1748215833588,-430.0,0.00019178,2]
[362358682,1748215833598,-400.0,0.00019178,2]
[362358683,1748215833608,-430.0,0.00019178,2]
[362358684,1748215833621,-414.35305313,0.00019178,2]
[362358685,1748215833632,-430.0,0.00019178,2]
[362358686,1748215833642,-430.0,0.00019178,2]
[362358687,1748215833653,-430.0,0.00019178,2]
[362358688,1748215833664,-406.0035918,0.00019178,2]
[362358689,1748215833676,-400.0,0.00019178,2]
[362358690,1748215833687,-400.0,0.00019178,2]
[362358691,1748215833697,-400.0,0.00019178,2]
[362358692,1748215833708,-400.0,0.00019178,2]
[362358693,1748215833718,-430.0,0.00019178,2]
[362358694,1748215833728,-500.0,0.00019178,2]
[362358695,1748215833739,-457.36480653,0.00019178,2]
[362358696,1748215833751,-500.0,0.00019178,2]
[362358697,1748215833760,-500.0,0.00019178,2]
[362358698,1748215833770,-500.0,0.00019178,2]
[362358699,1748215833780,-500.0,0.00019178,2]
[362358700,1748215833790,-500.0,0.00019178,2]
[362358701,1748215833801,-400.0,0.00019178,2]
[362358702,1748215833811,-503.60075459,0.00019178,2]
[362358703,1748215833821,-400.0,0.00019178,2]
[362358704,1748215833831,-544.93570894,0.00019178,2]
[362358705,1748215833841,-430.0,0.00019178,2]
[362358706,1748215834085,-400.0,0.00019178,2]
[362358707,1748215834096,-400.6170482,0.00019178,2]
[362358708,1748215834106,-400.56213178,0.00019178,2]
[362358709,1748215834116,-450.0,0.00019178,2]
[362358710,1748215834126,-400.0,0.00019178,2]
[362358711,1748215834136,-403.35432411,0.00019178,2]
[362358712,1748215834145,-430.0,0.00019178,2]
[362358713,1748215834155,-400.0,0.00019178,2]
[362358714,1748215834165,-430.0,0.00019178,2]
[362358715,1748215834176,-430.0,0.00019178,2]
[362358716,1748215834185,-400.0,0.00019178,2]
[362358717,1748215834195,-400.48493064,0.00019178,2]
[362358718,1748215834205,-430.0,0.00019178,2]
[362358719,1748215834215,-430.0,0.00019178,2]
[362358720,1748215834224,-430.0,0.00019178,2]
[362358721,1748215834235,-400.0,0.00019178,2]
[362358722,1748215834245,-400.0,0.00019178,2]
[362358723,1748215834255,-430.0,0.00019178,2]
[362358724,1748215834265,-400.45950009,0.00019178,2]
[362358725,1748215834275,-341.25330377,0.00019178,2]
[362358726,1748215834285,-430.0,0.00019178,2]
[362358727,1748215834295,-430.0,0.00019178,2]
[362358728,1748215834305,-400.0,0.00019178,2]
[362358729,1748215834315,-400.0,0.00019178,2]
[362358730,1748215834325,-430.0,0.00019178,2]
[362358731,1748215834335,-430.0,0.00019178,2]
[362358732,1748215834344,-430.0,0.00019178,2]
[362358733,1748215834354,-400.45419719,0.00019178,2]
[362358734,1748215834369,-430.0,0.00019178,2]
[362358735,1748215834378,-400.46427476,0.00019178,2]
[362358736,1748215834389,-430.0,0.00019178,2]
[362358737,1748215834398,-430.0,0.00019178,2]
[362358738,1748215834408,-430.0,0.00019178,2]
[362358739,1748215834418,-430.0,0.00019178,2]
[362358740,1748215834428,-430.0,0.00019178,2]
[362358741,1748215834438,-400.0,0.00019178,2]
[362358742,1748215834448,-550.0,0.00019178,2]
[362358743,1748215834459,-430.0,0.00019178,2]
[362358744,1748215834468,-430.0,0.00019178,2]
[362358745,1748215834478,-430.0,0.00019178,2]
[362358746,1748215834488,-400.0,0.00019178,2]
[362358747,1748215834497,-400.0,0.00019178,2]
[362358748,1748215834508,-430.0,0.00019178,2]
[362358749,1748215834517,-430.0,0.00019178,2]
[362358750,1748215834527,-400.0,0.00019178,2]
[362358751,1748215834537,-523.42876983,0.00019178,2]
[362358752,1748215834547,-430.0,0.00019178,2]
[362358753,1748215834557,-430.0,0.00019178,2]
[362358754,1748215834566,-400.1806231,0.00019178,2]
[362358755,1748215834576,-430.0,0.00019178,2]
[362358756,1748215834585,-400.0,0.00019178,2]
[362358757,1748215834595,-430.0,0.00019178,2]
[362358758,1748215834604,-432.4990111,0.00019178,2]
[362358759,1748215834613,-400.91748512,0.00019178,2]
[362358760,1748215834623,-432.20804807,0.00019178,2]
[362358761,1748215834633,-430.0,0.00019178,2]
[362358762,1748215834643,-432.33265084,0.00019178,2]
[362358763,1748215834652,-400.48333966,0.00019178,2]
[362358764,1748215834663,-430.59049704,0.00019178,2]
[362358765,1748215834676,-430.0,0.00019178,2]
[362358766,1748215834686,-430.0,0.00019178,2]
[362358767,1748215834695,-430.0,0.00019178,2]
[362358768,1748215834705,-400.24568923,0.00019178,2]
[362358769,1748215834714,-431.95477847,0.00019178,2]
[362358770,1748215834724,-430.0,0.00019178,2]
[362358771,1748215834734,-430.0,0.00019178,2]
[362358772,1748215834744,-430.0,0.00019178,2]
[362358773,1748215834754,-199.12997492,0.00019178,2]
[362358774,1748215834763,-305.61938522,0.00019178,2]
[362358775,1748215834773,-430.0,0.00019178,2]
[362358776,1748215834783,-430.0,0.00019178,2]
[362358777,1748215834793,-430.0,0.00019178,2]
[362358778,1748215834815,-400.0,0.00019178,2]
[362358779,1748215834826,-500.0,0.00019178,2]
[362358780,1748215834836,-482.45173188,0.00019178,2]
[362358781,1748215834847,-430.0,0.00019178,2]
[362358782,1748215834857,-430.0,0.00019178,2]
[362358783,1748215834867,-400.0,0.00019178,2]
[362358784,1748215834877,-400.0,0.00019178,2]
[362358785,1748215834887,-430.0,0.00019178,2]
[362358786,1748215834897,-430.0,0.00019178,2]
[362358787,1748215834907,-430.0,0.00019178,2]
[362358788,1748215834917,-430.0,0.00019178,2]
[362358789,1748215834929,-518.51315092,0.00019178,2]
[362358790,1748215834940,-430.0,0.00019178,2]
[362358791,1748215834951,-430.0,0.00019178,2]
[362358792,1748215834962,-431.84466198,0.00019178,2]
[362358793,1748215834971,-507.72042522,0.00019178,2]
[362358794,1748215834981,-400.0,0.00019178,2]
[362358795,1748215834991,-430.0,0.00019178,2]
[362358796,1748215835001,-430.0,0.00019178,2]
[362358797,1748215835011,-505.95636661,0.00019178,2]
[362358798,1748215835021,-430.0,0.00019178,2]
[362358799,1748215835031,-225.08317339,0.00019178,2]
[362358800,1748215835042,-547.05016768,0.00019178,2]
[362358801,1748215835051,-430.0,0.00019178,2]
[362358802,1748215835061,-430.0,0.00019178,2]
[362358803,1748215835072,-430.0,0.00019178,2]
[362358804,1748215835083,-430.0,0.00019178,2]
[362358805,1748215835093,-278.26155394,0.00019178,2]
[362358806,1748215835105,-430.0,0.00019178,2]
[362358807,1748215835115,-430.0,0.00019178,2]
[362358808,1748215835124,-400.0,0.00019178,2]
[362358809,1748215835134,-430.0,0.00019178,2]
[362358810,1748215835145,-355.87401664,0.00019178,2]
[362358811,1748215835155,-430.0,0.00019178,2]
[362358812,1748215835167,-430.0,0.00019178,2]
[362358813,1748215835178,-430.0,0.00019178,2]
[362358814,1748215835190,-430.0,0.00019178,2]
[362358815,1748215835201,-430.0,0.00019178,2]
[362358816,1748215835211,-430.0,0.00019178,2]
[362358817,1748215835221,-339.47530622,0.00019178,2]
[362358818,1748215835232,-430.0,0.00019178,2]
[362358819,1748215835241,-400.0,0.00019178,2]
[362358820,1748215835252,-430.0,0.00019178,2]
[362358821,1748215835261,-430.0,0.00019178,2]
[362358822,1748215835271,-430.0,0.00019178,2]
[362358823,1748215835282,-430.0,0.00019178,2]
[362358824,1748215835292,-430.0,0.00019178,2]
[362358825,1748215835301,-430.0,0.00019178,2]
[362358826,1748215835311,-430.0,0.00019178,2]
[362358827,1748215835322,-400.0,0.00019178,2]
[362358828,1748215835332,-430.0,0.00019178,2]
[362358829,1748215835342,-430.0,0.00019178,2]
[362358830,1748215835352,-430.0,0.00019178,2]
[362358831,1748215835362,-400.0,0.00019178,2]
[362358832,1748215835372,-300.0,0.00019178,2]
[362358833,1748215835382,-400.0,0.00019178,2]
[362358834,1748215835391,-535.97763467,0.00019178,2]
[362358835,1748215835401,-400.0,0.00019178,2]
[362358836,1748215835411,-430.0,0.00019178,2]
[362358837,1748215835421,-430.0,0.00019178,2]
[362358838,1748215835431,-400.0,0.00019178,2]
[362358839,1748215835442,-430.0,0.00019178,2]
[362358840,1748215835453,-400.0,0.00019178,2]
[362358841,1748215835463,-503.23081399,0.00019178,2]
[362358842,1748215835474,-400.0,0.00019178,2]
[362358843,1748215835483,-430.0,0.00019178,2]
[362358844,1748215835494,-400.0,0.00019178,2]
[362358845,1748215835505,-430.0,0.00019178,2]
[362358846,1748215835515,-430.0,0.00019178,2]
[362358847,1748215835526,-400.0,0.00019178,2]
[362358848,1748215835536,-430.0,0.00019178,2]
[362358849,1748215835546,-400.0,0.00019178,2]
[362358850,1748215835556,-430.0,0.00019178,2]
[362358851,1748215835567,-400.0,0.00019178,2]
[362358852,1748215835578,-430.0,0.00019178,2]
[362358853,1748215835587,-430.0,0.00019178,2]
[362358854,1748215835598,-400.0,0.00019178,2]
[362358855,1748215835610,-400.0,0.00019178,2]
[362358856,1748215835620,-400.0,0.00019178,2]
[362358857,1748215835632,-400.0,0.00019178,2]
[362358858,1748215835642,-430.0,0.00019178,2]
[362358859,1748215835652,-400.0,0.00019178,2]
[362358860,1748215835662,-400.49679314,0.00019178,2]
[362358861,1748215835675,-400.0,0.00019178,2]
[362358862,1748215835688,-400.0,0.00019178,2]
[362358863,1748215835699,-430.0,0.00019178,2]
[362358864,1748215835711,-430.0,0.00019178,2]
[362358865,1748215835721,-430.0,0.00019178,2]
[362358866,1748215835732,-271.70669629,0.00019178,2]
[362358867,1748215835742,-404.52771315,0.00019178,2]
[362358868,1748215835753,-430.0,0.00019178,2]
[362358869,1748215835762,-430.0,0.00019178,2]
[362358870,1748215835773,-400.0,0.00019178,2]
[362358871,1748215835784,-400.55479638,0.00019178,2]
[362358872,1748215835795,-430.0,0.00019178,2]
[362358873,1748215835806,-430.0,0.00019178,2]
[362358874,1748215835816,-430.0,0.00019178,2]
[362358875,1748215835827,-430.0,0.00019178,2]
[362358876,1748215835837,-554.65546797,0.00019178,2]
[362358877,1748215835848,-430.0,0.00019178,2]
[362358878,1748215835859,-430.0,0.00019178,2]
[362358879,1748215835869,-430.0,0.00019178,2]
[362358880,1748215835878,-352.97540426,0.00019178,2]
[362358881,1748215835888,-400.0,0.00019178,2]
[362358882,1748215835898,-570.0,0.00019178,2]
[362358883,1748215835908,-400.0,0.00019178,2]
[362358884,1748215835918,-400.0,0.00019178,2]
[362358885,1748215835930,-430.0,0.00019178,2]
[362358886,1748215835940,-430.0,0.00019178,2]
[362358887,1748215835952,-430.0,0.00019178,2]
[362358888,1748215835962,-430.0,0.00019178,2]
[362358889,1748215835972,-400.0,0.00019178,2]
[362358890,1748215835982,-430.0,0.00019178,2]
[362358891,1748215835994,-430.0,0.00019178,2]
[362358892,1748215836003,-400.0,0.00019178,2]
[362358893,1748215836014,-402.7164939,0.00019178,2]
[362358894,1748215836024,-430.0,0.00019178,2]
[362358895,1748215836035,-430.0,0.00019178,2]
[362358896,1748215836045,-400.0,0.00019178,2]
[362358897,1748215836055,-430.77631435,0.00019178,2]
[362358898,1748215836067,-430.0,0.00019178,2]
[362358899,1748215836076,-430.0,0.00019178,2]
[362358900,1748215836087,-289.68751607,0.00019178,2]
[362358901,1748215836097,-430.0,0.00019178,2]
[362358902,1748215836109,-400.0,0.00019178,2]
[362358903,1748215836120,-400.0,0.00019178,2]
[362358904,1748215836131,-400.0,0.00019178,2]
[362358905,1748215836142,-430.0,0.00019178,2]
[362358906,1748215836152,-430.0,0.00019178,2]
[362358907,1748215836163,-400.0,0.00019178,2]
[362358908,1748215836172,-430.0,0.00019178,2]
[362358909,1748215836181,-430.0,0.00019178,2]
[362358910,1748215836192,-401.31252133,0.00019178,2]
[362358911,1748215836203,-430.0,0.00019178,2]
[362358912,1748215836214,-400.0,0.00019178,2]
[362358913,1748215836224,-400.60343225,0.00019178,2]
[362358914,1748215836235,-400.0,0.00019178,2]
[362358915,1748215836246,-430.0,0.00019178,2]
[362358916,1748215836256,-430.0,0.00019178,2]
[362358917,1748215836266,-430.0,0.00019178,2]
[362358918,1748215836276,-402.61675007,0.00019178,2]
[362358919,1748215836286,-430.0,0.00019178,2]
[362358920,1748215836295,-400.0,0.00019178,2]
[362358921,1748215836305,-430.0,0.00019178,2]
[362358922,1748215836315,-430.0,0.00019178,2]
[362358923,1748215836325,-430.0,0.00019178,2]
[362358924,1748215836335,-156.58465985,0.00019178,2]
[362358925,1748215836344,-430.0,0.00019178,2]
[362358926,1748215836355,-400.0,0.00019178,2]
[362358927,1748215836365,-430.0,0.00019178,2]
[362358928,1748215836374,-430.0,0.00019178,2]
[362358929,1748215836384,-430.0,0.00019178,2]
[362358930,1748215836394,-400.0,0.00019178,2]
[362358931,1748215836404,-430.0,0.00019178,2]
[362358932,1748215836414,-430.0,0.00019178,2]
[362358933,1748215836424,-400.0,0.00019178,2]
[362358934,1748215836434,-400.0,0.00019178,2]
[362358935,1748215836445,-400.0,0.00019178,2]
[362358936,1748215836454,-430.0,0.00019178,2]
[362358937,1748215836464,-400.73085317,0.00019178,2]
[362358938,1748215836474,-430.0,0.00019178,2]
[362358939,1748215836484,-430.0,0.00019178,2]
[362358940,1748215836494,-430.0,0.00019178,2]
[362358941,1748215836504,-400.0,0.00019178,2]
[362358942,1748215836513,-430.0,0.00019178,2]
[362358943,1748215836523,-430.0,0.00019178,2]
[362358944,1748215836532,-430.0,0.00019178,2]
[362358945,1748215836542,-430.0,0.00019178,2]
[362358946,1748215836551,-430.0,0.00019178,2]
[362358947,1748215836561,-400.0,0.00019178,2]
[362358948,1748215836570,-430.0,0.00019178,2]
[362358949,1748215836580,-430.0,0.00019178,2]
[362358950,1748215836589,-229.4166889,0.00019178,2]
[362358951,1748215836598,-400.0,0.00019178,2]
[362358952,1748215836608,-430.0,0.00019178,2]
[362358953,1748215836617,-430.0,0.00019178,2]
[362358954,1748215836626,-500.0,0.00019178,2]
[362358955,1748215836635,-430.0,0.00019178,2]
[362358956,1748215836645,-430.0,0.00019178,2]
[362358957,1748215836654,-400.0,0.00019178,2]
[362358958,1748215836664,-430.0,0.00019178,2]
[362358959,1748215836676,-492.66643554,0.00019178,2]
[362358960,1748215836686,-430.0,0.00019178,2]
[362358961,1748215836695,-430.0,0.00019178,2]
[362358962,1748215836705,-430.0,0.00019178,2]
[362358963,1748215836715,-430.0,0.00019178,2]
[362358964,1748215836724,-430.0,0.00019178,2]
[362358965,1748215836733,-430.0,0.00019178,2]
[362358966,1748215836744,-500.0,0.00019178,2]
[362358967,1748215836754,-430.0,0.00019178,2]
[362358968,1748215836764,-430.0,0.00019178,2]
[362358969,1748215836773,-430.0,0.00019178,2]
[362358970,1748215836783,-430.0,0.00019178,2]
[362358971,1748215836795,-430.0,0.00019178,2]
[362358972,1748215836804,-430.95520742,0.00019178,2]
[362358973,1748215836814,-430.0,0.00019178,2]
[362358974,1748215836824,-400.0,0.00019178,2]
[362358975,1748215836834,-500.0,0.00019178,2]
[362358976,1748215836844,-430.0,0.00019178,2]
[362358977,1748215836853,-430.0,0.00019178,2]
[362358978,1748215836864,-430.0,0.00019178,2]
[362358979,1748215836875,-400.99236051,0.00019178,2]
[362358980,1748215836885,-430.0,0.00019178,2]
[362358981,1748215836896,-430.0,0.00019178,2]
[362358982,1748215836906,-450.0,0.00019178,2]
[362358983,1748215836916,-430.0,0.00019178,2]
[362358984,1748215836926,-430.0,0.00019178,2]
[362358985,1748215836937,-430.0,0.00019178,2]
[362358986,1748215836947,-430.0,0.00019178,2]
[362358987,1748215836957,-430.0,0.00019178,2]
[362358988,1748215836969,-430.0,0.00019178,2]
[362358989,1748215836978,-430.0,0.00019178,2]
[362358990,1748215836988,-378.60259231,0.00019178,2]
[362358991,1748215837001,-430.0,0.00019178,2]
[362358992,1748215837011,-400.0,0.00019178,2]
[362358993,1748215837022,-430.0,0.00019178,2]
[362358994,1748215837033,-430.0,0.00019178,2]
[362358995,1748215837043,-430.0,0.00019178,2]
[362358996,1748215837053,-400.0,0.00019178,2]